[Event "NJSK 2024 C"]
[Site "Groningen, Netherlands"]
[Date "2024.05.01"]
[Round "7.8"]
[White "Winter, Sven"]
[Black "Klein Tuente, Sam"]
[Result "1-0"]
[TimeControl "90min/40moves + 30min + 30sec/move"]
[WhiteElo "1768"]
[BlackElo "1732"]

1. e4 {[%clk 01:30:43]} {[%emt 00:00:16]} c5 {[%clk 01:30:52]} {[%emt
00:00:08]} 2. Nf3 {[%clk 01:31:06]} {[%emt 00:00:08]} e6 {[%clk 01:31:18]}
{[%emt 00:00:04]} 3. Nc3 {[%clk 01:31:30]} {[%emt 00:00:06]} Nc6 {[%clk
01:31:30]} {[%emt 00:00:18]} 4. Bb5 {[%clk 01:28:42]} {[%emt 00:03:17]} Nd4
{[%clk 01:31:23]} {[%emt 00:00:37]} 5. Bc4 {[%clk 01:25:57]} {[%emt 00:03:14]}
Nf6 {[%clk 01:28:30]} {[%emt 00:03:24]} 6. e5 {[%clk 01:20:11]} {[%emt
00:06:16]} Ng4 {[%clk 01:28:39]} {[%emt 00:00:21]} 7. Nxd4 {[%clk 01:19:09]}
{[%emt 00:01:32]} Nxe5 {[%clk 01:27:02]} {[%emt 00:02:07]} 8. Nxe6 {[%clk
01:14:14]} {[%emt 00:05:25]} dxe6 {[%clk 01:24:36]} {[%emt 00:02:56]} 9. Bb5+
{[%clk 01:14:03]} {[%emt 00:00:41]} Bd7 {[%clk 01:24:08]} {[%emt 00:00:58]} 10.
Be2 {[%clk 00:59:43]} {[%emt 00:14:50]} Bc6 {[%clk 01:19:16]} {[%emt 00:05:22]}
11. d3 {[%clk 00:54:54]} {[%emt 00:05:19]} Qh4 {[%clk 01:15:02]} {[%emt
00:04:44]} 12. O-O {[%clk 00:50:04]} {[%emt 00:05:20]} Bd6 {[%clk 01:14:34]}
{[%emt 00:00:59]} 13. f4 {[%clk 00:49:55]} {[%emt 00:00:37]} Ng6 {[%clk
01:14:04]} {[%emt 00:01:01]} 14. g3 {[%clk 00:47:27]} {[%emt 00:02:57]} Qf6
{[%clk 01:11:14]} {[%emt 00:03:20]} 15. Be3 {[%clk 00:46:37]} {[%emt 00:01:21]}
Rd8 {[%clk 01:09:16]} {[%emt 00:02:28]} 16. Bf3 {[%clk 00:46:28]} {[%emt
00:00:38]} Ne7 {[%clk 01:06:05]} {[%emt 00:03:41]} 17. Bxc6+ {[%clk 00:43:55]}
{[%emt 00:03:04]} Nxc6 {[%clk 01:06:14]} {[%emt 00:00:21]} 18. Qg4 {[%clk
00:40:42]} {[%emt 00:03:43]} Qg6 {[%clk 01:02:39]} {[%emt 00:04:05]} 19. Qxg6
{[%clk 00:40:49]} {[%emt 00:00:23]} hxg6 {[%clk 01:02:58]} {[%emt 00:00:11]} 20.
Ne4 {[%clk 00:40:05]} {[%emt 00:01:14]} b6 {[%clk 01:02:42]} {[%emt 00:00:46]}
21. a3 {[%clk 00:28:04]} {[%emt 00:12:31]} Be7 {[%clk 01:02:37]} {[%emt
00:00:34]} 22. b4 {[%clk 00:25:42]} {[%emt 00:02:53]} f5 {[%clk 01:00:31]}
{[%emt 00:02:35]} 23. Ng5 {[%clk 00:25:15]} {[%emt 00:00:57]} Bxg5 {[%clk
01:00:24]} {[%emt 00:00:38]} 24. fxg5 {[%clk 00:25:37]} {[%emt 00:00:07]} cxb4
{[%clk 01:00:21]} {[%emt 00:00:34]} 25. axb4 {[%clk 00:25:51]} {[%emt
00:00:16]} Nxb4 {[%clk 00:58:14]} {[%emt 00:02:38]} 26. Rxa7 {[%clk 00:25:56]}
{[%emt 00:00:24]} O-O {[%clk 00:57:32]} {[%emt 00:01:12]} 27. Bxb6 {[%clk
00:25:04]} {[%emt 00:01:21]} Rc8 {[%clk 00:56:43]} {[%emt 00:01:18]} 28. Bd4
{[%clk 00:16:33]} {[%emt 00:09:01]} Rf7 {[%clk 00:56:58]} {[%emt 00:00:16]} 29.
Rxf7 {[%clk 00:16:47]} {[%emt 00:00:15]} Kxf7 {[%clk 00:57:27]} {[%emt
00:00:02]} 30. Rb1 {[%clk 00:16:03]} {[%emt 00:01:13]} Nxc2 {[%clk 00:56:30]}
{[%emt 00:01:28]} 31. Rb7+ {[%clk 00:16:10]} {[%emt 00:00:23]} Ke8 {[%clk
00:56:49]} {[%emt 00:00:10]} 32. Bxg7 {[%clk 00:15:36]} {[%emt 00:01:04]} Ne3
{[%clk 00:55:45]} {[%emt 00:01:34]} 33. Rb1 {[%clk 00:13:21]} {[%emt 00:02:46]}
Rc2 {[%clk 00:49:51]} {[%emt 00:06:24]} 34. Bd4 {[%clk 00:06:10]} {[%emt
00:07:40]} Rg2+ {[%clk 00:47:59]} {[%emt 00:02:23]} 35. Kh1 {[%clk 00:06:28]}
{[%emt 00:00:11]} Re2 {[%clk 00:48:27]} {[%emt 00:00:03]} 36. Bxe3 {[%clk
00:06:19]} {[%emt 00:00:39]} Rxe3 {[%clk 00:48:53]} {[%emt 00:00:04]} 37. Rd1
{[%clk 00:06:23]} {[%emt 00:00:26]} Ke7 {[%clk 00:49:06]} {[%emt 00:00:17]} 38.
Kg1 {[%clk 00:06:08]} {[%emt 00:00:44]} Re2 {[%clk 00:49:15]} {[%emt 00:00:22]}
39. Rb1 {[%clk 00:06:19]} {[%emt 00:00:19]} Rd2 {[%clk 00:46:59]} {[%emt
00:02:46]} 40. Rb7+ {[%clk 00:06:42]} {[%emt 00:00:07]} Kf8 {[%clk 00:47:11]}
{[%emt 00:00:16]} 41. Rd7 {[%clk 00:07:06]} {[%emt 00:00:08]} e5 {[%clk
00:46:55]} {[%emt 00:00:45]} 42. Rd5 {[%clk 00:07:19]} {[%emt 00:00:17]} Re2
{[%clk 00:46:00]} {[%emt 00:01:25]} 43. h4 {[%clk 00:06:28]} {[%emt 00:01:21]}
Ke7 {[%clk 00:45:51]} {[%emt 00:00:40]} 44. Kf1 {[%clk 00:06:25]} {[%emt
00:00:33]} Re3 {[%clk 00:45:29]} {[%emt 00:00:51]} 45. Kf2 {[%clk 00:06:49]}
{[%emt 00:00:07]} f4 {[%clk 00:45:50]} {[%emt 00:00:09]} 46. gxf4 {[%clk
00:07:10]} {[%emt 00:00:09]} exf4 {[%clk 00:46:11]} {[%emt 00:00:09]} 47. Rd4
{[%clk 00:07:20]} {[%emt 00:00:21]} Rh3 {[%clk 00:46:18]} {[%emt 00:00:22]} 48.
Kg2 {[%clk 00:03:47]} {[%emt 00:03:58]} Rxh4 {[%clk 00:46:10]} {[%emt
00:00:43]} 49. Kf3 {[%clk 00:04:09]} {[%emt 00:00:07]} Ke6 {[%clk 00:43:51]}
{[%emt 00:02:50]} 50. Rxf4 {[%clk 00:01:28]} {[%emt 00:03:11]} Rh3+ {[%clk
00:44:10]} {[%emt 00:00:11]} 51. Ke4 {[%clk 00:01:44]} {[%emt 00:00:13]} Rg3
{[%clk 00:43:35]} {[%emt 00:01:03]} 52. Rf6+ {[%clk 00:02:07]} {[%emt
00:00:08]} Ke7 {[%clk 00:43:57]} {[%emt 00:00:08]} 53. Rxg6 {[%clk 00:02:30]}
{[%emt 00:00:06]} Kf7 {[%clk 00:44:19]} {[%emt 00:00:09]} 54. Rf6+ {[%clk
00:02:52]} {[%emt 00:00:08]} Ke7 {[%clk 00:44:03]} {[%emt 00:00:46]} 55. Rf5
{[%clk 00:03:01]} {[%emt 00:00:20]} Ke6 {[%clk 00:43:33]} {[%emt 00:01:01]} 56.
Re5+ {[%clk 00:02:37]} {[%emt 00:00:54]} Kd6 {[%clk 00:43:52]} {[%emt
00:00:11]} 57. Ra5 {[%clk 00:02:32]} {[%emt 00:00:36]} Rg4+ {[%clk 00:44:08]}
{[%emt 00:00:12]} 58. Kf5 {[%clk 00:02:37]} {[%emt 00:00:24]} Rd4 {[%clk
00:44:25]} {[%emt 00:00:13]} 59. Kf6 {[%clk 00:03:00]} {[%emt 00:00:08]} Rxd3
{[%clk 00:44:10]} {[%emt 00:00:45]} 60. Rf5 {[%clk 00:02:06]} {[%emt 00:01:25]}
Kd7 {[%clk 00:43:26]} {[%emt 00:01:14]} 61. Kf7 {[%clk 00:02:19]} {[%emt
00:00:18]} Re3 {[%clk 00:43:15]} {[%emt 00:00:41]} 62. g6 {[%clk 00:00:51]}
{[%emt 00:01:58]} Re7 {[%clk 00:43:42]} {[%emt 00:00:04]} 63. Kf8 {[%clk
00:01:12]} {[%emt 00:00:08]} Re8+ {[%clk 00:43:41]} {[%emt 00:00:31]} 64. Kg7
{[%clk 00:01:36]} {[%emt 00:00:05]} Ke6 {[%clk 00:43:58]} {[%emt 00:00:14]} 65.
Rf6+ {[%clk 00:01:47]} {[%emt 00:00:18]} Ke7 {[%clk 00:43:39]} {[%emt
00:00:49]} 66. Rf2 {[%clk 00:01:21]} {[%emt 00:00:57]} Ra8 {[%clk 00:43:51]}
{[%emt 00:00:18]} 67. Re2+ {[%clk 00:01:14]} {[%emt 00:00:37]} Kd7 {[%clk
00:44:13]} {[%emt 00:00:07]} 68. Kf7 {[%clk 00:01:15]} {[%emt 00:00:29]} Ra1
{[%clk 00:44:28]} {[%emt 00:00:16]} 69. Rd2+ {[%clk 00:01:39]} {[%emt
00:00:06]} Kc7 {[%clk 00:44:52]} {[%emt 00:00:06]} 70. Rf2 {[%clk 00:01:31]}
{[%emt 00:00:38]} Kd6 {[%clk 00:45:11]} {[%emt 00:00:11]} 71. g7 {[%clk
00:01:54]} {[%emt 00:00:07]} Ra7+ {[%clk 00:45:22]} {[%emt 00:00:20]} 72. Kg6
{[%clk 00:02:13]} {[%emt 00:00:08]} Ra8 {[%clk 00:44:46]} {[%emt 00:01:08]} 73.
Rf8 {[%clk 00:02:34]} {[%emt 00:00:09]} Ra1 {[%clk 00:44:50]} {[%emt 00:00:25]}
74. g8=Q {[%clk 00:02:49]} {[%emt 00:00:16]} Rg1 {[%clk 00:45:07]} {[%emt
00:00:12]} 75. Kf5 {[%clk 00:03:14]} {[%emt 00:00:06]} Rf1+ {[%clk 00:45:28]}
{[%emt 00:00:09]} 76. Ke4 {[%clk 00:03:38]} {[%emt 00:00:06]} Re1+ {[%clk
00:45:44]} {[%emt 00:00:14]} 77. Kd3 {[%clk 00:04:03]} {[%emt 00:00:04]} 1-0

[Event "NJSK 2024 C"]
[Site "Groningen, Netherlands"]
[Date "2024.05.01"]
[Round "7.9"]
[White "Lalkota, Sai Pranav Tejas"]
[Black "Guillaumond, Matthieu"]
[Result "0-1"]
[TimeControl "90min/40moves + 30min + 30sec/move"]
[WhiteElo "1782"]
[BlackElo "1945"]

1. c4 {[%clk 01:30:58]} {[%emt 00:00:02]} c5 {[%clk 01:22:48]} {[%emt
00:08:14]} 2. g3 {[%clk 01:31:20]} {[%emt 00:00:08]} g6 {[%clk 01:23:10]}
{[%emt 00:00:08]} 3. Bg2 {[%clk 01:31:45]} {[%emt 00:00:04]} Bg7 {[%clk
01:23:22]} {[%emt 00:00:18]} 4. Nc3 {[%clk 01:31:53]} {[%emt 00:00:22]} Nc6
{[%clk 01:23:42]} {[%emt 00:00:10]} 5. Nf3 {[%clk 01:32:14]} {[%emt 00:00:09]}
d6 {[%clk 01:24:05]} {[%emt 00:00:07]} 6. O-O {[%clk 01:32:36]} {[%emt
00:00:06]} e5 {[%clk 01:24:32]} {[%emt 00:00:05]} 7. e3 {[%clk 01:29:59]}
{[%emt 00:03:07]} Nge7 {[%clk 01:24:30]} {[%emt 00:00:32]} 8. d3 {[%clk
01:29:43]} {[%emt 00:00:46]} O-O {[%clk 01:24:39]} {[%emt 00:00:20]} 9. Bd2
{[%clk 01:29:29]} {[%emt 00:00:43]} a6 {[%clk 01:24:38]} {[%emt 00:00:31]} 10.
Ne2 {[%clk 01:28:54]} {[%emt 00:01:05]} b5 {[%clk 01:23:21]} {[%emt 00:01:48]}
11. Rc1 {[%clk 01:26:31]} {[%emt 00:02:53]} bxc4 {[%clk 01:22:37]} {[%emt
00:01:14]} 12. dxc4 {[%clk 01:26:00]} {[%emt 00:01:01]} e4 {[%clk 01:22:48]}
{[%emt 00:00:20]} 13. Ne1 {[%clk 01:26:22]} {[%emt 00:00:07]} f5 {[%clk
01:22:59]} {[%emt 00:00:19]} 14. Bc3 {[%clk 01:26:15]} {[%emt 00:00:37]} Ne5
{[%clk 01:21:03]} {[%emt 00:02:23]} 15. b3 {[%clk 01:23:58]} {[%emt 00:02:50]}
Be6 {[%clk 01:18:58]} {[%emt 00:02:34]} 16. Qd2 {[%clk 01:21:37]} {[%emt
00:02:52]} Rc8 {[%clk 01:16:51]} {[%emt 00:02:37]} 17. f3 {[%clk 01:21:40]}
{[%emt 00:00:27]} exf3 {[%clk 01:14:56]} {[%emt 00:02:25]} 18. Nxf3 {[%clk
01:21:56]} {[%emt 00:00:14]} Ng4 {[%clk 01:13:58]} {[%emt 00:01:28]} 19. Bxg7
{[%clk 01:21:53]} {[%emt 00:00:33]} Kxg7 {[%clk 01:14:24]} {[%emt 00:00:04]} 20.
Ng5 {[%clk 01:18:57]} {[%emt 00:03:25]} Bg8 {[%clk 01:12:22]} {[%emt 00:02:32]}
21. h3 {[%clk 01:18:59]} {[%emt 00:00:29]} Nf6 {[%clk 01:11:33]} {[%emt
00:01:19]} 22. Bb7 {[%clk 01:17:19]} {[%emt 00:02:09]} Rc7 {[%clk 01:05:48]}
{[%emt 00:06:15]} 23. Nf4 {[%clk 01:16:57]} {[%emt 00:00:53]} Qd7 {[%clk
01:04:51]} {[%emt 00:01:27]} 24. Bxa6 {[%clk 01:17:18]} {[%emt 00:00:09]} h6
{[%clk 01:04:55]} {[%emt 00:00:25]} 25. Bb5 {[%clk 01:16:16]} {[%emt 00:01:33]}
Qc8 {[%clk 01:05:19]} {[%emt 00:00:06]} 26. Nf3 {[%clk 01:15:37]} {[%emt
00:01:09]} Ne4 {[%clk 01:04:48]} {[%emt 00:01:02]} 27. Qb2+ {[%clk 01:15:32]}
{[%emt 00:00:35]} Kh7 {[%clk 01:05:07]} {[%emt 00:00:09]} 28. Kh2 {[%clk
01:14:51]} {[%emt 00:01:12]} Bf7 {[%clk 01:03:45]} {[%emt 00:01:53]} 29. Nd2
{[%clk 01:14:56]} {[%emt 00:00:24]} g5 {[%clk 01:01:57]} {[%emt 00:02:16]} 30.
Nxe4 {[%clk 01:12:30]} {[%emt 00:02:58]} fxe4 {[%clk 01:02:09]} {[%emt
00:00:18]} 31. Ne2 {[%clk 01:12:17]} {[%emt 00:00:44]} Be6 {[%clk 00:59:28]}
{[%emt 00:03:11]} 32. Nc3 {[%clk 01:09:40]} {[%emt 00:03:07]} Bf5 {[%clk
00:55:39]} {[%emt 00:04:17]} 33. Rcd1 {[%clk 01:08:42]} {[%emt 00:01:30]} Qd8
{[%clk 00:54:00]} {[%emt 00:02:10]} 34. Qd2 {[%clk 01:06:25]} {[%emt 00:02:46]}
Bg6 {[%clk 00:53:16]} {[%emt 00:01:14]} 35. Nd5 {[%clk 01:04:34]} {[%emt
00:02:22]} Nxd5 {[%clk 00:53:02]} {[%emt 00:00:44]} 36. Qxd5 {[%clk 01:04:53]}
{[%emt 00:00:11]} Rf6 {[%clk 00:51:15]} {[%emt 00:02:16]} 37. Qd2 {[%clk
01:02:11]} {[%emt 00:03:12]} Rcf7 {[%clk 00:50:31]} {[%emt 00:01:14]} 38. Qg2
{[%clk 01:02:23]} {[%emt 00:00:17]} Qf8 {[%clk 00:50:11]} {[%emt 00:00:51]} 39.
Kg1 {[%clk 01:02:09]} {[%emt 00:00:44]} Rf3 {[%clk 00:49:34]} {[%emt 00:01:07]}
40. Rxf3 {[%clk 01:01:42]} {[%emt 00:00:57]} exf3 {[%clk 00:49:46]} {[%emt
00:00:18]} 41. Qf2 {[%emt 00:00:30]} Be4 {[%clk 00:49:38]} {[%emt 00:00:26]} 42.
a4 {[%clk 01:00:51]} {[%emt 00:01:33]} Rf6 {[%clk 00:47:56]} {[%emt 00:02:10]}
43. Kh2 {[%clk 00:59:27]} {[%emt 00:01:55]} Qc8 {[%clk 00:47:01]} {[%emt
00:01:25]} 44. Rf1 {[%clk 00:57:54]} {[%emt 00:02:01]} Qf5 {[%clk 00:46:28]}
{[%emt 00:01:05]} 45. a5 {[%clk 00:56:55]} {[%emt 00:01:30]} Qe5 {[%clk
00:45:04]} {[%emt 00:01:53]} 46. Rc1 {[%clk 00:56:44]} {[%emt 00:00:41]} h5
{[%clk 00:43:11]} {[%emt 00:02:25]} 47. Kg1 {[%clk 00:56:50]} {[%emt 00:00:23]}
Qf5 {[%clk 00:42:17]} {[%emt 00:01:24]} 48. Kh2 {[%clk 00:57:06]} {[%emt
00:00:14]} Qe5 {[%clk 00:42:22]} {[%emt 00:00:24]} 49. Kg1 {[%clk 00:57:16]}
{[%emt 00:00:20]} Kh6 {[%clk 00:41:28]} {[%emt 00:01:24]} 50. Kh2 {[%clk
00:56:21]} {[%emt 00:01:21]} h4 {[%clk 00:39:55]} {[%emt 00:02:07]} 51. a6
{[%clk 00:55:20]} {[%emt 00:01:32]} hxg3+ {[%clk 00:39:06]} {[%emt 00:01:19]}
52. Qxg3 {[%clk 00:55:44]} {[%emt 00:00:06]} Qb2+ {[%clk 00:39:13]} {[%emt
00:00:23]} 0-1

[Event "NJSK 2024 C"]
[Site "Groningen, Netherlands"]
[Date "2024.05.01"]
[Round "7.10"]
[White "Leenen, Boyd"]
[Black "Frederiks, Jesse"]
[Result "1-0"]
[TimeControl "90min/40moves + 30min + 30sec/move"]
[WhiteElo "1920"]
[BlackElo "1718"]

1. Nf3 {[%clk 01:30:56]} {[%emt 00:00:03]} Nf6 {[%clk 01:30:52]} {[%emt
00:00:08]} 2. e3 {[%clk 01:31:22]} {[%emt 00:00:05]} e6 {[%clk 01:31:06]}
{[%emt 00:00:15]} 3. b3 {[%clk 01:31:33]} {[%emt 00:00:19]} d5 {[%clk
01:31:01]} {[%emt 00:00:36]} 4. Bb2 {[%clk 01:31:55]} {[%emt 00:00:08]} c5
{[%clk 01:30:18]} {[%emt 00:01:13]} 5. Be2 {[%clk 01:31:58]} {[%emt 00:00:26]}
Nbd7 {[%clk 01:29:53]} {[%emt 00:00:55]} 6. d4 {[%clk 01:32:17]} {[%emt
00:00:12]} b6 {[%clk 01:30:08]} {[%emt 00:00:15]} 7. O-O {[%clk 01:32:13]}
{[%emt 00:00:33]} Bb7 {[%clk 01:30:25]} {[%emt 00:00:13]} 8. c4 {[%clk
01:32:15]} {[%emt 00:00:28]} Be7 {[%clk 01:30:13]} {[%emt 00:00:37]} 9. Nbd2
{[%clk 01:31:54]} {[%emt 00:00:56]} O-O {[%clk 01:30:29]} {[%emt 00:00:13]} 10.
Ne5 {[%clk 01:29:38]} {[%emt 00:02:48]} Rc8 {[%clk 01:25:46]} {[%emt 00:05:13]}
11. f4 {[%clk 01:29:47]} {[%emt 00:00:20]} Ne4 {[%clk 01:25:43]} {[%emt
00:00:33]} 12. Nxe4 {[%clk 01:29:25]} {[%emt 00:00:52]} dxe4 {[%clk 01:26:04]}
{[%emt 00:00:09]} 13. Nxd7 {[%clk 01:18:04]} {[%emt 00:11:52]} Qxd7 {[%clk
01:26:26]} {[%emt 00:00:07]} 14. Qc2 {[%clk 01:16:07]} {[%emt 00:02:27]} Rfd8
{[%clk 01:23:16]} {[%emt 00:03:40]} 15. Rfd1 {[%clk 01:15:47]} {[%emt
00:00:50]} Qc7 {[%clk 01:23:15]} {[%emt 00:00:32]} 16. Rac1 {[%clk 01:15:34]}
{[%emt 00:00:42]} cxd4 {[%clk 01:22:27]} {[%emt 00:01:18]} 17. Bxd4 {[%clk
01:12:43]} {[%emt 00:03:21]} Bc5 {[%clk 01:22:15]} {[%emt 00:00:43]} 18. Qc3
{[%clk 01:10:37]} {[%emt 00:02:35]} Bxd4 {[%clk 01:22:32]} {[%emt 00:00:13]} 19.
Rxd4 {[%clk 01:10:39]} {[%emt 00:00:29]} Rxd4 {[%clk 01:22:57]} {[%emt
00:00:05]} 20. Qxd4 {[%clk 01:10:49]} {[%emt 00:00:19]} Rd8 {[%clk 01:23:17]}
{[%emt 00:00:10]} 21. Qc3 {[%clk 01:10:55]} {[%emt 00:00:24]} h6 {[%clk
01:17:29]} {[%emt 00:06:18]} 22. Rd1 {[%clk 01:10:29]} {[%emt 00:00:55]} Rxd1+
{[%clk 01:16:01]} {[%emt 00:01:59]} 23. Bxd1 {[%clk 01:10:55]} {[%emt
00:00:04]} Qd7 {[%clk 01:16:00]} {[%emt 00:00:31]} 24. Qd4 {[%clk 01:10:34]}
{[%emt 00:00:51]} Qxd4 {[%clk 01:15:35]} {[%emt 00:00:55]} 25. exd4 {[%clk
01:10:51]} {[%emt 00:00:13]} f5 {[%clk 01:15:34]} {[%emt 00:00:30]} 26. Kf2
{[%clk 01:11:04]} {[%emt 00:00:18]} Kf7 {[%clk 01:15:56]} {[%emt 00:00:09]} 27.
Ke3 {[%clk 01:11:15]} {[%emt 00:00:18]} g6 {[%clk 01:11:01]} {[%emt 00:05:25]}
28. g3 {[%clk 01:11:37]} {[%emt 00:00:08]} Ke7 {[%clk 01:10:49]} {[%emt
00:00:42]} 29. b4 {[%clk 01:11:13]} {[%emt 00:00:53]} Bc6 {[%clk 01:09:23]}
{[%emt 00:01:57]} 30. a4 {[%clk 01:10:48]} {[%emt 00:00:55]} Kd7 {[%clk
01:02:53]} {[%emt 00:07:00]} 31. Bb3 {[%clk 01:10:46]} {[%emt 00:00:31]} Kd6
{[%clk 01:01:35]} {[%emt 00:01:49]} 32. b5 {[%clk 01:07:58]} {[%emt 00:03:19]}
Bd7 {[%clk 01:00:23]} {[%emt 00:01:42]} 33. Kd2 {[%clk 01:07:02]} {[%emt
00:01:26]} Bc8 {[%clk 00:55:37]} {[%emt 00:05:15]} 34. Kc3 {[%clk 01:07:15]}
{[%emt 00:00:17]} Bd7 {[%clk 00:52:03]} {[%emt 00:04:04]} 35. Kb4 {[%clk
01:07:23]} {[%emt 00:00:22]} Bc8 {[%clk 00:50:59]} {[%emt 00:01:35]} 36. c5+
{[%clk 01:04:41]} {[%emt 00:03:12]} Kc7 {[%clk 00:48:29]} {[%emt 00:02:59]} 37.
h4 {[%clk 01:04:46]} {[%emt 00:00:26]} h5 {[%clk 00:47:13]} {[%emt 00:01:46]}
38. Bc4 {[%clk 01:02:39]} {[%emt 00:02:37]} bxc5+ {[%emt 00:03:18]} 39. dxc5
{[%clk 01:01:01]} {[%emt 00:00:08]} Kd7 {[%clk 00:45:47]} {[%emt 00:01:06]} 40.
Kc3 {[%clk 01:01:20]} {[%emt 00:00:13]} Ke7 {[%clk 00:45:18]} {[%emt 00:00:58]}
41. Kd4 {[%clk 01:00:55]} {[%emt 00:00:55]} Bb7 {[%clk 00:45:35]} {[%emt
00:00:13]} 42. Ke5 {[%clk 01:00:05]} {[%emt 00:01:21]} Bd5 {[%clk 00:45:58]}
{[%emt 00:00:07]} 43. Be2 {[%clk 01:00:08]} {[%emt 00:00:25]} Bb3 {[%clk
00:44:50]} {[%emt 00:01:35]} 44. a5 {[%clk 01:00:26]} {[%emt 00:00:17]} Kd7
{[%clk 00:44:56]} {[%emt 00:00:23]} 45. b6 {[%clk 00:54:11]} {[%emt 00:06:45]}
axb6 {[%clk 00:45:08]} {[%emt 00:00:18]} 46. cxb6 {[%clk 00:53:46]} {[%emt
00:00:56]} Kc6 {[%clk 00:45:25]} {[%emt 00:00:12]} 47. Bb5+ {[%clk 00:51:44]}
{[%emt 00:02:32]} Kb7 {[%clk 00:45:45]} {[%emt 00:00:10]} 48. Kd6 {[%clk
00:51:54]} {[%emt 00:00:20]} Bc2 {[%clk 00:45:36]} {[%emt 00:00:40]} 49. Bc6+
{[%clk 00:52:04]} {[%emt 00:00:19]} Ka6 {[%clk 00:43:23]} {[%emt 00:02:43]} 50.
b7 {[%clk 00:52:21]} {[%emt 00:00:13]} e3 {[%clk 00:43:45]} {[%emt 00:00:08]}
51. b8=Q {[%emt 00:00:09]} e2 {[%clk 00:44:10]} {[%emt 00:00:05]} 52. Qb6#
{[%clk 00:53:04]} {[%emt 00:00:09]} 1-0